Cogmind - Beta 14 @@@ ROGUE MODE // 2025.03.23 @ 17:22:34 Player: Cog Result: Destroyed by P-60 Hacker with Shock Rifle Performance ------------- Evolutions (4) 2000 Regions Visited (5) 1000 Robots Destroyed (74) 370 Value Destroyed (2308) 2308 Prototype IDs (2) 40 Alien Tech Used (0) 0 Bonus (6) 6 TOTAL SCORE: 5724 Bonus ------- High Alert Combat Kills 6 Cogmind --------- Core Integrity 0/850 Matter 166/300 Energy 100/100 System Corruption 1% Temperature Cool (0) Movement Walking (190) Ox1 Location -6/Factory Parts ------- > --- POWER (2) -------- (None) > --- PROPULSION (4) --- Carbon-fiber Leg Carbon-fiber Leg > --- UTILITY (7) ------ Advanced Heat Sink Advanced Heat Sink High-capacity Storage Unit Melee Analysis Suite High-powered Tractor Beam > --- WEAPON (2) ------- Autogun Powered Hammer > --- INVENTORY (20) --- Huge Storage Unit Heavy Ion Cannon Proton Missile Launcher Mini Grenade Launcher Heavy Mace Peak State ------------ > --- POWER ------------ Light Angular Momentum Engine Fusion Compressor > --- PROPULSION ------- Aluminum Leg Aluminum Leg > --- UTILITY ---------- Improved Heat Sink High-capacity Storage Unit High-capacity Matter Pod Advanced Weight Redist. System Advanced Targeting Computer Hardlight Generator Recalibrator > --- WEAPON ----------- Gauss Rifle Heavy Machine Gun > --- INVENTORY -------- Nuclear Core Huge Storage Unit Melee Analysis Suite Reaction Control System Recalibrator Heavy Particle Cannon Heavy Ion Cannon High-powered Shotgun Flak Gun Flak Cannon Proton Missile Launcher Mini Grenade Launcher Heavy Mace Powered Hammer Katana [Rating: 43] Favorites ----------- Power Improved Ion Engine Engine Improved Ion Engine Power Core Light Nuclear Core Propulsion Carbon-fiber Leg Leg Carbon-fiber Leg Utility High-capacity Storage Unit Device ECM Suite Storage High-capacity Storage Unit Processor Advanced Targeting Computer Protection Light Armor Plating Weapon High-powered Shotgun Energy Gun Pulse Rifle Energy Cannon Heavy Particle Cannon Ballistic Gun High-powered Shotgun Ballistic Cannon Flak Cannon Launcher Mini Grenade Launcher Impact Weapon Powered Hammer Slashing Weapon Katana Build | -11 -10 -9 -8 -7 -6 ------- Run | Yrd Mat Mat Mat Fac Fac Slots Evolved 8 | . . 2 2 2 2 Power 1 | . . . . 1 . Propulsion 2 | . . 1 1 . . Utility 5 | . . 1 1 1 2 Weapon . | . . . . . . Parts Attached 103 | 5 4 17 15 26 36 Power 20 | . 1 3 2 5 9 Engine 11 | . 1 2 1 3 4 Core 9 | . . 1 1 2 5 Reactor . | . . . . . . Propulsion 23 | 2 . 9 6 3 3 Treads . | . . . . . . Leg 23 | 2 . 9 6 3 3 Wheel . | . . . . . . Hover . | . . . . . . Flight . | . . . . . . Utility 26 | 1 3 2 2 10 8 Device 15 | . 1 . . 7 7 Storage 5 | 1 2 2 . . . Processor 2 | . . . . 1 1 Hackware . | . . . . . . Protection 4 | . . . 2 2 . Artifact . | . . . . . . Weapon 34 | 2 . 3 5 8 16 Energy Gun 1 | . . . 1 . . Energy Cannon 4 | . . . . 2 2 Ballistic Gun 18 | 2 . 3 2 3 8 Ballistic Cannon 3 | . . . 1 1 1 Launcher 4 | . . . 1 1 2 Special Weapon . | . . . . . . Impact Weapon 3 | . . . . 1 2 Slashing Weapon 1 | . . . . . 1 Piercing Weapon . | . . . . . . Special Melee Weapon . | . . . . . . Unidentified Prototypes . | . . . . . . Parts Lost 42 | . . 1 6 9 26 Power 12 | . . 1 1 2 8 Propulsion 12 | . . . 4 5 3 Utility 10 | . . . . 2 8 Weapon 8 | . . . 1 . 7 Highest Loss Streak 17 | . . 1 3 9 17 To Critical Strikes 3 | . . . 2 1 . Average Slot Usage (%) 88 | . 84 99 98 93 59 Engine 7 | . 8 8 6 10 3 Core 2 | . . 2 1 2 4 Leg 26 | . 28 32 34 26 9 Device 10 | . 5 11 9 8 17 Storage 15 | . 14 22 18 15 8 Processor 2 | . . . . 6 2 Protection 2 | . . . 9 4 . Energy Cannon 1 | . . . . 5 . Ballistic Gun 13 | . 28 21 14 2 7 Launcher 1 | . . . . 4 . Peak Build Rating 43 | 5 7 24 27 37 43 Average Rating 24 | 3 5 22 25 31 30 On Entrance 14 | . 5 7 23 26 28 Naked Turns . | . . . . . . Heaviest Build 74 | 9 44 59 65 72 74 Greatest Support 58 | 20 20 45 58 54 45 Greatest Overweight (x) 18 | . 2 1 2 2 18 Average Overweight (x) 1 | . . . 1 1 2 Largest Inventory Capacity 20 | 8 20 20 20 20 20 Average Capacity 18 | 6 8 19 20 20 20 Most Carried 20 | 6 8 20 20 20 16 Average Carried 15 | 4 7 18 19 18 10 Final Capacity 20 | 8 8 20 20 20 20 Final Carried 20 | 6 8 20 20 16 5 Class Distribution -------------------- 64% | Mutant 35% | Scavenger-Mutant Dominant Class ---------------- Mutant | -10/Materials Mutant | -9/Materials Scavenger-Mutant | -8/Materials Scavenger-Mutant | -7/Factory Mutant | -6/Factory Resources | -11 -10 -9 -8 -7 -6 ----------- Run | Yrd Mat Mat Mat Fac Fac Matter Collected 2276 | 250 44 891 418 301 372 Remotely 82 | . . . . . 82 Salvage Created 2329 | . 76 935 443 383 492 Parts 155 | . 5 71 42 20 17 Haulers Intercepted 2 | . . 2 . . . Recyclers Shooed 1 | . . 1 . . . Parts Field Recycled . | . . . . . . Retrieved Matter . | . . . . . . Parts Self-Destructed . | . . . . . . Prevented . | . . . . . . Kills | -11 -10 -9 -8 -7 -6 ------- Run | Yrd Mat Mat Mat Fac Fac Combat Hostiles Destroyed 59 | . 2 24 16 7 10 Melee 2 | . . . . . 2 Guns 43 | . 2 24 10 1 6 Cannons 9 | . . . 3 5 1 AOE 4 | . . . 3 . 1 Classes Destroyed 12 | . 1 7 3 1 . Worker 2 | . . 1 . 1 . Builder 3 | . . . 2 . 1 Tunneler 1 | . . . 1 . . Hauler 2 | . . 2 . . . Recycler 4 | . . 2 . 1 1 Watcher 3 | . . 2 1 . . Swarmer 17 | . . 6 8 . 3 Grunt 25 | . 2 13 4 . 6 Duelist 1 | . . 1 . . . Sentry 8 | . . 4 3 1 . Hunter 4 | . . . 1 2 1 Programmer 4 | . . . . 4 . Best Kill Streak 6 | . 2 5 6 3 3 Combat Bots Only 4 | . 2 4 4 3 3 Max Kills in Single Turn 3 | . 1 3 2 2 1 Gunslinging 1 | . . 1 . . . Exploded 2 | . . . 2 . 1 Melee 1 | . . . . . 1 Uniques/NPCs Destroyed . | . . . . . . Combat | -11 -10 -9 -8 -7 -6 -------- Run | Yrd Mat Mat Mat Fac Fac Hostile Shots Fired 608 | . 4 108 95 163 238 Missed 145 | . 1 28 24 48 44 Damage Taken 6156 | . 32 936 858 1222 3108 Core 1334 | . . 215 117 147 855 Absorbed by Shields 340 | . . . . . 340 Regen/Repaired (Parts) 63 | . . 63 . . . Core Remaining (%) 80 | 100 100 46 78 79 . Volleys Fired 185 | . 6 67 38 31 43 Largest 2 | . 2 2 2 2 2 Hottest 140 | . 40 50 88 140 104 Shots Fired 331 | . 12 134 71 50 64 Gun 255 | . 12 134 57 12 40 Cannon 59 | . . . 11 34 14 Launcher 17 | . . . 3 4 10 Special . | . . . . . . Kinetic 266 | . 12 134 59 15 46 Thermal 48 | . . . 9 31 8 Explosive 11 | . . . 3 4 4 Electromagnetic 6 | . . . . . 6 Robot Hit Streak 18 | . 3 9 5 18 10 Robot Miss Streak 13 | . 1 13 9 3 4 Penetration Max 1 | . . . . 1 1 Secondary Targets 7 | . . 5 2 . . Max Gunslinging Chain 1 | . . 1 1 . . Shots Hit Robots 237 | . 7 87 45 40 58 Core Hits 151 | . 4 54 39 18 36 Critical Kills 1 | . . . . 1 . Critical Parts Destroyed 2 | . . 2 . . . Critical Strikes 3 | . . 2 . 1 . Meltdown 1 | . . . . 1 . Destroy 2 | . . 2 . . . Melee Attacks 14 | . . . . . 14 Impact 5 | . . . . . 5 Slashing 9 | . . . . . 9 Piercing . | . . . . . . Sneak Attacks 2 | . . . . . 2 Combat Hostiles . | . . . . . . Follow-up Attacks 3 | . . . . . 3 Damage Inflicted 5768 | . 83 1636 1058 1207 1784 Guns 3272 | . 83 1636 584 278 691 Cannons 1117 | . . . 107 742 268 Explosions 879 | . . . 367 187 325 Melee 500 | . . . . . 500 Ramming . | . . . . . . Kinetic 3439 | . 83 1636 569 345 806 Thermal 950 | . . . 122 675 153 Explosive 754 | . . . 367 187 200 Electromagnetic 125 | . . . . . 125 Impact 261 | . . . . . 261 Slashing 239 | . . . . . 239 Piercing . | . . . . . . Highest Corruption 2 | . . . 2 2 1 Average Corruption 1 | . . . 1 1 1 Corruption Purged . | . . . . . . Corruption Blocked . | . . . . . . Effects 14 | . . . 7 7 . Message Errors 3 | . . . 2 1 . Matter Fused 1 | . . . 1 . . Heat Flow Errors 3 | . . . 1 2 . Energy Discharges 1 | . . . . 1 . Data Loss (minor) 2 | . . . 1 1 . Data Loss (major) 1 | . . . . 1 . Misfires 1 | . . . 1 . . Weapon Failures 2 | . . . 1 1 . Overload Shots . | . . . . . . Overflow Damage 78 | . . . 28 3 47 Projectiles 3 | . . . . 3 . Explosions 47 | . . . 28 . 19 Melee 28 | . . . . . 28 Knockbacks 8 | . . . 1 . 7 Impact 1 | . . . . . 1 Kinetic 6 | . . . 1 . 5 Secondary 1 | . . . . . 1 Self-Inflicted Damage 159 | . . . 111 28 20 Shots 5 | . . . 3 1 1 Rammed . | . . . . . . Targets Rammed . | . . . . . . Kicked . | . . . . . . Crushed . | . . . . . . Highest Temperature 497 | . . 20 174 497 135 Average Temperature 107 | . . 3 40 204 30 Received Heat Transfer 1734 | . 18 372 162 144 1038 Effects 5 | . . . . 5 . Shutdowns 2 | . . . . 2 . Interference 2 | . . . . 2 . Short Circuit 1 | . . . . 1 . Siege Activations . | . . . . . . Robots Corrupted . | . . . . . . Combat Hostiles . | . . . . . . Parts Fried . | . . . . . . Impact Corruptions . | . . . . . . Robots Melted 1 | . . . . 1 . Combat Hostiles 1 | . . . . 1 . Parts Melted 2 | . . . . 2 . Heat Transferred 1406 | . . . 259 925 222 Parts Sabotaged . | . . . . . . Parts Stolen . | . . . . . . Parts Stripped . | . . . . . . Power Chain Reactions . | . . . . . . Alert | -11 -10 -9 -8 -7 -6 ------- Run | Yrd Mat Mat Mat Fac Fac Peak Influence 466 | . 40 350 466 307 80 Initial 170 | . . 12 109 170 49 Average 133 | . 16 173 283 131 49 Maximum Alert Level 2 | . . 1 2 1 . Low Security (%) 71 | 100 100 49 22 86 100 Level 1 26 | . . 50 65 13 . Level 2 1 | . . . 12 . . Level 3 . | . . . . . . Level 4 . | . . . . . . Level 5 . | . . . . . . High Security . | . . . . . . Max Security . | . . . . . . Squads Dispatched 18 | . . 5 4 4 5 Investigation 5 | . . 3 . . 2 Extermination 4 | . . . . 3 1 Reinforcement 6 | . . 2 1 1 2 Assault . | . . . . . . Garrison 3 | . . . 3 . . Intercept . | . . . . . . Searches Triggered . | . . . . . . Construction Impeded 2 | . . . . 1 1 Haulers Reinforced . | . . . . . . Active Scanning Responses . | . . . . . . Cargo Convoy Interrupts . | . . . . . . Stealth | -11 -10 -9 -8 -7 -6 --------- Run | Yrd Mat Mat Mat Fac Fac Distress Signals 9 | . 1 6 1 1 . Communications Jammed . | . . . . . . Distress Signals . | . . . . . . Times Spotted 100 | . 7 49 23 9 12 Peak Tracking Total 6 | . 3 5 4 4 6 Tactical Retreats 20 | . 1 14 4 1 . Traps | -11 -10 -9 -8 -7 -6 ------- Run | Yrd Mat Mat Mat Fac Fac Traps Triggered 4 | . . . 2 1 1 Indirectly . | . . . . . . Trap Hack Attempts . | . . . . . . Triggered . | . . . . . . Disarmed 6 | . . . . 6 . Reprogrammed . | . . . . . . Reused . | . . . . . . Traps Extracted . | . . . . . . Installed . | . . . . . . Triggered . | . . . . . . Machines | -11 -10 -9 -8 -7 -6 ---------- Run | Yrd Mat Mat Mat Fac Fac Machines Disabled 6 | . . 2 2 . 2 Max in Single Turn 1 | . . 1 1 . 1 Machines Repaired . | . . . . . . Machines Dismantled . | . . . . . . Machines Sabotaged . | . . . . . . Overloaded Fab Kills . | . . . . . . Hacking | -11 -10 -9 -8 -7 -6 --------- Run | Yrd Mat Mat Mat Fac Fac Machines Accessed 14 | . 3 6 . 3 2 Terminals 9 | . 3 3 . 3 . Fabricators 1 | . . . . . 1 Repair Stations 1 | . . 1 . . . Recycling Units 1 | . . 1 . . . Scanalyzers 2 | . . 1 . . 1 Garrison Access . | . . . . . . Total Hacks 34 | . 3 19 . 5 7 Successful 19 | . 1 10 . 2 6 Failed 15 | . 2 9 . 3 1 Catastrophic 1 | . . 1 . . . Database Lockouts . | . . . . . . Manual . | . . . . . . Terminals 19 | . 3 11 . 5 . Fabricators 3 | . . . . . 3 Repair Stations 3 | . . 3 . . . Recycling Units 3 | . . 3 . . . Scanalyzers 6 | . . 2 . . 4 Garrison Access . | . . . . . . Terminal Hacks 9 | . 1 6 . 2 . Record 2 | . . 2 . . . Prototype ID Bank 1 | . . 1 . . . Unreport Threat 2 | . 1 1 . . . Disarm Traps 2 | . . . . 2 . Recall Investigation 1 | . . 1 . . . Zone Layout 1 | . . 1 . . . Fabricator Hacks 2 | . . . . . 2 Load Schematic 1 | . . . . . 1 Build 1 | . . . . . 1 Repair Station Hacks 2 | . . 2 . . . Scan Component 1 | . . 1 . . . Repair 1 | . . 1 . . . Recycling Unit Hacks . | . . . . . . Scanalyzer 6 | . . 2 . . 4 Insert Component 3 | . . 1 . . 2 Analyze 3 | . . 1 . . 2 Garrison Access Hacks . | . . . . . . Unauthorized Hacks . | . . . . . . Terminals . | . . . . . . Fabricators . | . . . . . . Repair Stations . | . . . . . . Recycling Units . | . . . . . . Scanalyzers . | . . . . . . Garrison Access . | . . . . . . Data Cores Recovered . | . . . . . . Used . | . . . . . . Hacking Detections 11 | . 3 5 . 1 2 Full Trace Events 7 | . . 5 . . 2 Feedback Events . | . . . . . . Feedback Blocked . | . . . . . . Robot Schematics Acquired . | . . . . . . Robots Built . | . . . . . . Authchips . | . . . . . . Time . | . . . . . . Total Robot Build Rating . | . . . . . . Part Schematics Acquired 3 | . . 1 . . 2 Parts Built 2 | . . . . . 2 Authchips . | . . . . . . Time 36 | . . . . . 36 Total Part Build Rating 6 | . . . . . 6 Parts Repaired 1 | . . 1 . . . Time 19 | . . 19 . . . Parts Recycled . | . . . . . . Recycled Matter . | . . . . . . Retrieved Matter . | . . . . . . Retrieved Components . | . . . . . . Parts Scanalyzed 3 | . . 1 . . 2 Part Schematics Acquired 3 | . . 1 . . 2 Parts Damaged . | . . . . . . Bothacking | -11 -10 -9 -8 -7 -6 ------------ Run | Yrd Mat Mat Mat Fac Fac Used RIF Installer . | . . . . . . Robots Hacked . | . . . . . . Non-combat . | . . . . . . Combat . | . . . . . . Robot Hacks Applied . | . . . . . . Relay Couplers Released . | . . . . . . Fabnet Peak Effective % . | . . . . . . Robots Rewired . | . . . . . . Allies Hacked . | . . . . . . Hacks Repelled . | . . . . . . Allies | -11 -10 -9 -8 -7 -6 -------- Run | Yrd Mat Mat Mat Fac Fac Total Allies . | . . . . . . Largest Group . | . . . . . . Highest-Rated Group . | . . . . . . Highest-Rated Ally . | . . . . . . Total Orders . | . . . . . . Ally Attacks . | . . . . . . Total Damage . | . . . . . . Kills . | . . . . . . Allies Corrupted . | . . . . . . Allies Melted . | . . . . . . Intel | -11 -10 -9 -8 -7 -6 ------- Run | Yrd Mat Mat Mat Fac Fac Robot Analysis Total . | . . . . . . Derelict Logs Recovered . | . . . . . . Drone Launches . | . . . . . . Drone Recoveries . | . . . . . . Exploration | -11 -10 -9 -8 -7 -6 ------------- Run | Yrd Mat Mat Mat Fac Fac Turns Passed 4531 | 81 545 1281 639 1110 875 Spaces Moved 1825 | 57 359 451 256 457 245 Core 15 | 5 . . . . 10 Treads . | . . . . . . Legs 1810 | 52 359 451 256 457 235 Wheels . | . . . . . . Hover . | . . . . . . Flight . | . . . . . . Fastest Speed 50 | 50 120 120 190 190 190 Average Speed 188 | 113 123 187 190 203 273 Slowest Speed 950 | 120 260 190 260 260 950 Overloaded Moves . | . . . . . . Propulsion Burnouts . | . . . . . . Robots Hopped . | . . . . . . Cave-ins Triggered . | . . . . . . Exploration Rate (%) 25 | 4 59 40 25 18 7 Regions Visited 5 Branch Regions . Pre-discovered Areas . | . . . . . . Known Exits Taken . | . . . . . . Unknown Exits Taken 5 | 1 1 1 1 1 . Scrap Searched . | . . . . . . Spaces Dug . | . . . . . . Terrain Destroyed 69 | . . . 30 30 9 Melee . | . . . . . . Projectile 3 | . . . 1 2 . AOE 66 | . . . 29 28 9 Terrain Rammed . | . . . . . . Walls Destroyed . | . . . . . . Machines Disabled . | . . . . . . Actions | -11 -10 -9 -8 -7 -6 --------- Run | Yrd Mat Mat Mat Fac Fac Total 2578 | 74 453 763 341 581 366 Wait 305 | . 68 175 5 46 11 Move 1820 | 56 358 450 255 456 245 Hop . | . . . . . . Pick Up 105 | 12 10 35 18 13 17 Fast Attach . | . . . . . . Attach 61 | 5 4 9 8 9 26 Detach 1 | . 1 . . . . Swap 42 | . . 8 7 17 10 Drop 48 | 1 6 19 10 9 3 Fire 185 | . 6 67 38 31 43 Melee 11 | . . . . . 11 Ram . | . . . . . . Kick . | . . . . . . Crush . | . . . . . . Escape Stasis . | . . . . . . Rewire . | . . . . . . Trap . | . . . . . . Miscellaneous . | . . . . . . Route ------- -11/Scrapyard -10/Materials -9/Materials (discovered 2 exits: [*Mat] / [*Min]) -8/Materials -7/Factory -6/Factory History --------- Turn | Location | Event 11 | -11/Scrapyard | Discovered new exit (range 15) 82 | -11/Scrapyard | Entered Materials 305 | -10/Materials | Build established: Mutant 612 | -10/Materials | Discovered new exit (range 13) 627 | -10/Materials | Entered another Materials area 627 | -9/Materials | Evolved 2 slots: Propulsion x1, Utility x1 1206 | -9/Materials | Discovered new exit (range 14) 1248 | -9/Materials | Repaired Carbon-fiber Leg 1710 | -9/Materials | Core integrity fell below 50% 1855 | -9/Materials | Discovered new exit (range 11) 1908 | -9/Materials | Entered another Materials area 1908 | -8/Materials | Evolved 2 slots: Propulsion x1, Utility x1 2219 | -8/Materials | Garrison activated, responded to threat 2437 | -8/Materials | Discovered new exit (range 16) 2448 | -8/Materials | Build established: Scavenger-Mutant 2492 | -8/Materials | Lost 3 parts (3n) 2547 | -8/Materials | Entered Factory 2547 | -7/Factory | Evolved 2 slots: Power x1, Utility x1 3429 | -7/Factory | Lost 9 parts (2p5n2u) 3646 | -7/Factory | Discovered new exit (range 4) 3657 | -7/Factory | Entered another Factory area 3657 | -6/Factory | Evolved 2 slots: Utility x2 3681 | -6/Factory | Build established: Mutant 3777 | -6/Factory | Fabricated Carbon-fiber Leg? 3989 | -6/Factory | Core integrity fell below 50% 4017 | -6/Factory | Lost 17 parts (4p2n7u4w) 4126 | -6/Factory | Core integrity fell below 20% 4328 | -6/Factory | Lost 4 parts (2p1n1u) 4431 | -6/Factory | Build established: Scavenger-Mutant 4532 | -6/Factory | Destroyed by P-60 Hacker with Shock Rifle Last Messages --------------- area. Lgt. Nuclear Core destroyed. Proton Bomb Trap short circuited. A bubble of electromagnetic force engulfs the area. Door malfunctions. Proton Bomb Trap short circuited. A bubble of electromagnetic force engulfs the area. U-05 Engineer lays Concrete. U-05 Engineer repairs door. O-24 Administrator: "IFF HANDSHAKE FAILED. SECURING TERMINAL." O-24 Administrator uses terminal to summon reinforcements. ALERT: Hostiles spotted, dispatching reinforcements to Terminal F007. O-24 Administrator locks terminal. ALERT: Rogue bot located, Programmers report to Factory Zone 4X. Map ----- +----------------------------------------------------+ | """ """ """ #?????????????????????????????? | | """ """ """ #?????????????????????????????? | | "" """ """ #?????????????????????????????? | | "" """ """ #?????????????????????????????? | | % #?????????????????????????????? | | ###==""" """ """ #?????????????????????????????? | | ??# """ """ """ ###########????????####+###???? | | ??#= """ """ """ ???? ?? | | ??# " " """ """ ??? | | ??# ?? | | ??# """ """ """ ??? | | ??# """ """ """ = ????? | | ??# """ """ """ ????? | | ??# """ """ """ ??????? | | ??# ##########???????# | | ??# """ #????????????????# ? | | ??# """ #????????????????# ?? | | ??# """ #???############?# #??? | | ??# "" "" "" #???# #?# #??? | | ??# "F "" #???# #?# #??? | | ??# """"" #???# #?# #??? | | ### k #???# ### #??? | | ##### + #??? | | ###### # ######+####### | | ?????# t # # # | | ?????# p@ # ""# | | ?????# # # ! ""# | | # # ""# | | #### #######+########## # """ """ T"# | | ???# # #??# # """ """ """# | | ???# # """" #??# # """ """ "" # | | ???# # """ #??# # # | | ???# # """ #??# # """ """ # | | ???# ?# """ = #??############ """ """ ! # | | ???# ? ?#[ * #?????????????# ?"" """ # | | ????????# [= """ #?????????????# ?? # | | ????????# "" #?????????????##??###?###### | | ????????# "" #??????????????????????????? | | ????????# "" #??????????????????????????? | | ????????# #??????????????????????????? | | ????????###############??????????????????????????? | | | | | | | | | | | | | | | | | | | +----------------------------------------------------+ Best States ------------- Heat Dissipation 75 Energy Generation 38 Energy Capacity 430 Matter Stores 500 Matter Capacity 500 Sight Range 16 Terrain Scan Density 10 ECM Strength 1 Additional Mass Support 9 Armor Coverage 150 Evasion (%) 55 Targeting Accuracy 8 Melee Accuracy 5 Item Schematics ----------------- Carbon-fiber Leg | -9/Materials | Scanalyzed Recalibrator | -6/Factory | Scanalyzed Hvy. Machine Gun | -6/Factory | Scanalyzed Robot Schematics ------------------ None Fabricated ------------ Carbon-fiber Leg | x2 | -6/Factory Alien Tech Used ----------------- None Achievements -------------- Just What I Needed Challenges ------------ None Game ------ Seed CatalystIntegratedTerminator Manual? 0 Play Time 01:01:09 Cumulative 17.2 hours Start 2025.03.23 @ 16:14:00 End 2025.03.23 @ 17:22:34 Sessions 1 Manual Loads 0 Difficulty Rogue Special Mode None Game No. 25 Rogue 25 Adventurer 0 Explorer 0 Win Type - Total 0 Types 0/0/0/0/0/0/0/0/0 Lore% 11 Gallery% 19 Achievement% 17 Wizard Run 0 Options --------- Layout 1 ASCII 0 Keyboard 0 Movement Mouse Keybinds 0 Fullscreen 0 Font 28/SmallcapsGlow Map View 50x35 Zoom Use 0% Tactical HUD 0 Map Filters NONE Filters NONE Steam 1 RUN: cc708bf3-39ad-4ffe-b088-d4a39471901a